[Event "*** Titled Tuesday Blitz"]
[Site "Chess.com"]
[Date "2020.04.28"]
[Round "4"]
[White "ZCorrales"]
[Black "Rinas_Oleg"]
[Result "1-0"]
[WhiteElo "2082"]
[BlackElo "2216"]
[TimeControl "180+1"]
[EndTime "10:41:28 PDT"]
[Termination "ZCorrales won on time"]

1. d4 {[%clk 0:03:00.9]} 1... Nf6 {[%clk 0:02:57.1]} 2. Nf3 {[%clk 0:03:00.8]}
2... g6 {[%clk 0:02:55.9]} 3. Bg5 {[%clk 0:02:59.5]} 3... Bg7 {[%clk 0:02:54.6]}
4. e3 {[%clk 0:02:59.5]} 4... O-O {[%clk 0:02:53.3]} 5. Be2 {[%clk 0:02:57.9]}
5... d5 {[%clk 0:02:52.1]} 6. O-O {[%clk 0:02:57.7]} 6... c5 {[%clk 0:02:51.4]}
7. c3 {[%clk 0:02:49]} 7... cxd4 {[%clk 0:02:47.9]} 8. exd4 {[%clk 0:02:46]}
8... Nc6 {[%clk 0:02:45.1]} 9. Nbd2 {[%clk 0:02:45.3]} 9... Bf5 {[%clk
0:02:40.5]} 10. h3 {[%clk 0:02:42.6]} 10... h6 {[%clk 0:02:36.2]} 11. Bf4 {[%clk
0:02:40.5]} 11... Ne4 {[%clk 0:02:30.8]} 12. Re1 {[%clk 0:02:34.2]} 12... Nxd2
{[%clk 0:02:29.5]} 13. Qxd2 {[%clk 0:02:33.7]} 13... Kh7 {[%clk 0:02:27.4]} 14.
Bd3 {[%clk 0:02:01.9]} 14... Bxd3 {[%clk 0:02:24.9]} 15. Qxd3 {[%clk 0:02:00.9]}
15... Qd7 {[%clk 0:02:21.9]} 16. Ne5 {[%clk 0:01:47.4]} 16... Nxe5 {[%clk
0:02:20.9]} 17. dxe5 {[%clk 0:01:46.9]} 17... e6 {[%clk 0:02:18.1]} 18. h4
{[%clk 0:01:46.6]} 18... h5 {[%clk 0:02:13.3]} 19. Bg5 {[%clk 0:01:39.9]} 19...
Rac8 {[%clk 0:02:10.8]} 20. g3 {[%clk 0:01:30.7]} 20... Rc4 {[%clk 0:02:07.9]}
21. Rad1 {[%clk 0:01:27.5]} 21... Qc7 {[%clk 0:02:01]} 22. Bf4 {[%clk
0:01:19.9]} 22... b5 {[%clk 0:01:59]} 23. Kg2 {[%clk 0:01:16.6]} 23... Rb8
{[%clk 0:01:48]} 24. Re3 {[%clk 0:01:11.6]} 24... b4 {[%clk 0:01:46.4]} 25. cxb4
{[%clk 0:01:09.3]} 25... Rbxb4 {[%clk 0:01:43.5]} 26. b3 {[%clk 0:01:08.1]}
26... Rc2 {[%clk 0:01:39.7]} 27. Re2 {[%clk 0:01:02.2]} 27... Rxe2 {[%clk
0:01:32.8]} 28. Qxe2 {[%clk 0:01:01.7]} 28... Re4 {[%clk 0:01:29.1]} 29. Qf3
{[%clk 0:00:55.6]} 29... Kg8 {[%clk 0:01:12.2]} 30. Rc1 {[%clk 0:00:48.4]} 30...
Qb8 {[%clk 0:01:11.7]} 31. Qc3 {[%clk 0:00:44.8]} 31... Bxe5 {[%clk 0:01:05.8]}
32. Qc8+ {[%clk 0:00:42.7]} 32... Qxc8 {[%clk 0:01:00]} 33. Rxc8+ {[%clk
0:00:41.7]} 33... Kg7 {[%clk 0:00:58.4]} 34. Bxe5+ {[%clk 0:00:41.6]} 34... Rxe5
{[%clk 0:00:57.3]} 35. Ra8 {[%clk 0:00:42]} 35... d4 {[%clk 0:00:42.5]} 36. Rxa7
{[%clk 0:00:41.1]} 36... Rd5 {[%clk 0:00:41.4]} 37. Kf1 {[%clk 0:00:39]} 37...
e5 {[%clk 0:00:39.9]} 38. Re7 {[%clk 0:00:34.9]} 38... d3 {[%clk 0:00:36.2]} 39.
Ke1 {[%clk 0:00:33.8]} 39... Kf8 {[%clk 0:00:33]} 40. Rc7 {[%clk 0:00:32.4]}
40... d2+ {[%clk 0:00:19.6]} 41. Kd1 {[%clk 0:00:32.2]} 41... Rd3 {[%clk
0:00:19.3]} 42. Rc2 {[%clk 0:00:29.5]} 42... e4 {[%clk 0:00:16.8]} 43. Rxd2
{[%clk 0:00:29.8]} 43... Rf3 {[%clk 0:00:15.9]} 44. Ke2 {[%clk 0:00:28.2]} 44...
Rf5 {[%clk 0:00:14.9]} 45. Rd4 {[%clk 0:00:26.6]} 45... Ra5 {[%clk 0:00:12.9]}
46. a4 {[%clk 0:00:26.8]} 46... f5 {[%clk 0:00:12.7]} 47. Rb4 {[%clk 0:00:24.6]}
47... Ke7 {[%clk 0:00:11.5]} 48. Rb5 {[%clk 0:00:23.9]} 48... Ra6 {[%clk
0:00:11]} 49. a5 {[%clk 0:00:23.8]} 49... Kd7 {[%clk 0:00:08.9]} 50. b4 {[%clk
0:00:24.1]} 50... Kc6 {[%clk 0:00:07.6]} 51. Rc5+ {[%clk 0:00:23.5]} 51... Kd6
{[%clk 0:00:06.8]} 52. Rb5 {[%clk 0:00:23.4]} 52... Kc6 {[%clk 0:00:05.9]} 53.
Rb8 {[%clk 0:00:23.4]} 53... Ra7 {[%clk 0:00:04.9]} 54. b5+ {[%clk 0:00:22.8]}
54... Kc5 {[%clk 0:00:03.8]} 55. a6 {[%clk 0:00:19.8]} 55... Rd7 {[%clk
0:00:03.2]} 56. Rb7 {[%clk 0:00:18.4]} 56... Rd8 {[%clk 0:00:02.6]} 57. a7
{[%clk 0:00:18]} 57... Ra8 {[%clk 0:00:02.2]} 58. b6 {[%clk 0:00:18]} 58... Kc6
{[%clk 0:00:02]} 59. Rb8 {[%clk 0:00:18.1]} 1-0

[Event "*** Titled Tuesday Blitz"]
[Site "Chess.com"]
[Date "2020.04.28"]
[Round "4"]
[White "jguerramzllo"]
[Black "VinzentSpitzl"]
[Result "1-0"]
[WhiteElo "2628"]
[BlackElo "2384"]
[TimeControl "180+1"]
[EndTime "10:41:31 PDT"]
[Termination "jguerramzllo won by resignation"]

1. e4 {[%clk 0:03:00.9]} 1... c6 {[%clk 0:02:59.1]} 2. d4 {[%clk 0:03:00.1]}
2... d5 {[%clk 0:02:59.1]} 3. Nc3 {[%clk 0:03:00.3]} 3... dxe4 {[%clk
0:02:59.1]} 4. Nxe4 {[%clk 0:03:01]} 4... Nf6 {[%clk 0:02:59.4]} 5. Ng3 {[%clk
0:02:58.9]} 5... h5 {[%clk 0:02:59.1]} 6. h4 {[%clk 0:02:50.6]} 6... c5 {[%clk
0:02:59]} 7. Nf3 {[%clk 0:02:46.4]} 7... Nc6 {[%clk 0:02:55.1]} 8. Be3 {[%clk
0:02:20]} 8... cxd4 {[%clk 0:02:54.1]} 9. Nxd4 {[%clk 0:02:19.6]} 9... Nxd4
{[%clk 0:02:53]} 10. Qxd4 {[%clk 0:02:17.6]} 10... Qxd4 {[%clk 0:02:48.4]} 11.
Bxd4 {[%clk 0:02:18.5]} 11... e6 {[%clk 0:02:43.7]} 12. Be2 {[%clk 0:02:07.5]}
12... Bb4+ {[%clk 0:01:47.4]} 13. c3 {[%clk 0:02:06.2]} 13... Bd6 {[%clk
0:01:47.5]} 14. Bxf6 {[%clk 0:01:58.9]} 14... gxf6 {[%clk 0:01:44.9]} 15. Nxh5
{[%clk 0:01:58.7]} 15... Ke7 {[%clk 0:01:45.1]} 16. Ng3 {[%clk 0:01:42.3]} 16...
Bd7 {[%clk 0:01:43.3]} 17. Ne4 {[%clk 0:01:41.9]} 17... Be5 {[%clk 0:01:42]} 18.
Bf3 {[%clk 0:01:36]} 18... Bc6 {[%clk 0:01:41]} 19. Nd2 {[%clk 0:01:36]} 19...
f5 {[%clk 0:01:35.8]} 20. Bxc6 {[%clk 0:01:21.3]} 20... bxc6 {[%clk 0:01:36.7]}
21. Ke2 {[%clk 0:01:20.1]} 21... Rab8 {[%clk 0:01:31.4]} 22. Nc4 {[%clk
0:01:19.4]} 22... Bf6 {[%clk 0:01:30]} 23. g3 {[%clk 0:01:18.8]} 23... f4 {[%clk
0:01:28.6]} 24. Kf3 {[%clk 0:01:10.4]} 24... fxg3 {[%clk 0:01:28.4]} 25. fxg3
{[%clk 0:01:11.3]} 25... Rb5 {[%clk 0:01:24]} 26. Rad1 {[%clk 0:00:50]} 26...
Rc5 {[%clk 0:01:19.9]} 27. Nd2 {[%clk 0:00:45.4]} 27... Rb5 {[%clk 0:01:10.2]}
28. Nc4 {[%clk 0:00:44.2]} 28... Rc5 {[%clk 0:01:09.8]} 29. Ne3 {[%clk 0:00:36]}
29... Rb8 {[%clk 0:01:06.1]} 30. Rh2 {[%clk 0:00:35.4]} 30... Rh8 {[%clk
0:00:56.8]} 31. Rdd2 {[%clk 0:00:34.5]} 31... Ra5 {[%clk 0:00:51.9]} 32. a3
{[%clk 0:00:32.4]} 32... Rb5 {[%clk 0:00:48.3]} 33. Ng4 {[%clk 0:00:31.8]} 33...
Bg7 {[%clk 0:00:36.4]} 34. Ne3 {[%clk 0:00:30.7]} 34... f5 {[%clk 0:00:31.5]}
35. Rd3 {[%clk 0:00:25.5]} 35... Be5 {[%clk 0:00:28]} 36. Rhd2 {[%clk
0:00:24.1]} 36... Rg8 {[%clk 0:00:20.5]} 37. Rd7+ {[%clk 0:00:19.5]} 37... Kf6
{[%clk 0:00:20.7]} 38. g4 {[%clk 0:00:18.7]} 38... fxg4+ {[%clk 0:00:02.7]} 39.
Nxg4+ {[%clk 0:00:18.1]} 39... Kg6 {[%clk 0:00:03.3]} 40. Re2 {[%clk 0:00:17]}
40... Bf6 {[%clk 0:00:01.5]} 41. Rxe6 {[%clk 0:00:15.9]} 41... Rf5+ {[%clk
0:00:02]} 42. Ke4 {[%clk 0:00:14.3]} 42... Rh8 {[%clk 0:00:01.7]} 43. Nxf6
{[%clk 0:00:09.9]} 43... Rxf6 {[%clk 0:00:02.6]} 44. Rxf6+ {[%clk 0:00:09.9]}
44... Kxf6 {[%clk 0:00:03.5]} 45. Rd6+ {[%clk 0:00:09.4]} 45... Ke7 {[%clk
0:00:04]} 46. Rxc6 {[%clk 0:00:09.1]} 46... Rxh4+ {[%clk 0:00:04.9]} 47. Kd3
{[%clk 0:00:09.6]} 47... Kd7 {[%clk 0:00:05.1]} 48. Ra6 {[%clk 0:00:09.1]} 48...
Rh2 {[%clk 0:00:05.2]} 49. Rxa7+ {[%clk 0:00:07.2]} 49... Kc6 {[%clk 0:00:06.1]}
50. b3 {[%clk 0:00:06.7]} 50... Rh3+ {[%clk 0:00:06.6]} 51. Kc4 {[%clk
0:00:06.5]} 51... Rh2 {[%clk 0:00:07.5]} 52. b4 {[%clk 0:00:06.1]} 52... Rh4+
{[%clk 0:00:08.4]} 53. Kb3 {[%clk 0:00:06.4]} 53... Kb6 {[%clk 0:00:08.1]} 54.
Ra5 {[%clk 0:00:05.6]} 54... Kc6 {[%clk 0:00:09]} 55. Rg5 {[%clk 0:00:05.7]}
55... Rh3 {[%clk 0:00:09.9]} 56. Rf5 {[%clk 0:00:05.9]} 56... Rh2 {[%clk
0:00:10.8]} 57. a4 {[%clk 0:00:06.1]} 57... Rh3 {[%clk 0:00:11.7]} 58. a5 {[%clk
0:00:06.4]} 58... Kb7 {[%clk 0:00:12.6]} 59. Rg5 {[%clk 0:00:06.2]} 59... Rh4
{[%clk 0:00:13.5]} 60. b5 {[%clk 0:00:06.4]} 60... Rh5 {[%clk 0:00:14.4]} 61.
Rxh5 {[%clk 0:00:05.6]} 1-0

[Event "*** Titled Tuesday Blitz"]
[Site "Chess.com"]
[Date "2020.04.28"]
[Round "4"]
[White "AcsinteMatei"]
[Black "JiaHaoxiang"]
[Result "1-0"]
[WhiteElo "2292"]
[BlackElo "2572"]
[TimeControl "180+1"]
[EndTime "10:41:31 PDT"]
[Termination "AcsinteMatei won by resignation"]

1. d4 {[%clk 0:03:00.9]} 1... Nf6 {[%clk 0:02:59.7]} 2. Bf4 {[%clk 0:02:59.1]}
2... d5 {[%clk 0:02:58.5]} 3. e3 {[%clk 0:02:58.5]} 3... e6 {[%clk 0:02:57.8]}
4. Nd2 {[%clk 0:02:53]} 4... c5 {[%clk 0:02:58.3]} 5. c3 {[%clk 0:02:51.8]} 5...
Bd6 {[%clk 0:02:58.8]} 6. Bg3 {[%clk 0:02:51.2]} 6... O-O {[%clk 0:02:59.2]} 7.
Ngf3 {[%clk 0:02:51.6]} 7... b6 {[%clk 0:02:59.5]} 8. Bd3 {[%clk 0:02:51.9]}
8... Bb7 {[%clk 0:03:00]} 9. Qe2 {[%clk 0:02:42.2]} 9... Nc6 {[%clk 0:03:00.1]}
10. e4 {[%clk 0:02:32.9]} 10... dxe4 {[%clk 0:02:46.3]} 11. Nxe4 {[%clk
0:02:26.3]} 11... Nxe4 {[%clk 0:02:45]} 12. Qxe4 {[%clk 0:02:26.5]} 12... g6
{[%clk 0:02:45.1]} 13. dxc5 {[%clk 0:02:14.9]} 13... Bxc5 {[%clk 0:02:42.9]} 14.
Bh4 {[%clk 0:02:02.6]} 14... Qc7 {[%clk 0:02:31.5]} 15. Bf6 {[%clk 0:01:56.8]}
15... Nb4 {[%clk 0:02:11.8]} 16. Qe2 {[%clk 0:01:47.2]} 16... Nxd3+ {[%clk
0:02:11.3]} 17. Qxd3 {[%clk 0:01:47.2]} 17... Qf4 {[%clk 0:02:00.3]} 18. Be5
{[%clk 0:01:37.8]} 18... Qg4 {[%clk 0:01:41.3]} 19. Bg3 {[%clk 0:00:55.1]} 19...
Rad8 {[%clk 0:01:35.5]} 20. Qe2 {[%clk 0:00:55.2]} 20... Be4 {[%clk 0:01:13.6]}
21. Ne5 {[%clk 0:00:34.9]} 21... Qxe2+ {[%clk 0:01:12.8]} 22. Kxe2 {[%clk
0:00:34.4]} 22... Bxg2 {[%clk 0:01:13]} 23. Rhd1 {[%clk 0:00:33.2]} 23... Bd5
{[%clk 0:01:08]} 24. c4 {[%clk 0:00:30.9]} 24... Bb7 {[%clk 0:01:07.7]} 25. Nd7
{[%clk 0:00:29.5]} 25... Rfe8 {[%clk 0:00:59]} 26. Nf6+ {[%clk 0:00:25.2]} 26...
Kf8 {[%clk 0:00:53.1]} 27. Nxe8 {[%clk 0:00:25.3]} 27... Rxe8 {[%clk 0:00:53.1]}
28. Bd6+ {[%clk 0:00:21.9]} 28... Bxd6 {[%clk 0:00:52.3]} 29. Rxd6 {[%clk
0:00:22.5]} 29... Rc8 {[%clk 0:00:50]} 30. b3 {[%clk 0:00:22.6]} 30... Rc7
{[%clk 0:00:47.1]} 31. Rad1 {[%clk 0:00:22.5]} 31... Bc6 {[%clk 0:00:47.5]} 32.
Kd3 {[%clk 0:00:21.3]} 32... Ke7 {[%clk 0:00:45.7]} 33. Kc3 {[%clk 0:00:21.7]}
33... a5 {[%clk 0:00:42.3]} 34. R6d4 {[%clk 0:00:21.7]} 34... e5 {[%clk
0:00:42]} 35. R4d2 {[%clk 0:00:20.4]} 35... f5 {[%clk 0:00:42]} 36. a3 {[%clk
0:00:20.7]} 36... Bf3 {[%clk 0:00:39.2]} 37. Re1 {[%clk 0:00:20.1]} 37... e4
{[%clk 0:00:39.6]} 38. Re3 {[%clk 0:00:19.8]} 38... Ke6 {[%clk 0:00:36.2]} 39.
b4 {[%clk 0:00:20.3]} 39... axb4+ {[%clk 0:00:36.1]} 40. axb4 {[%clk 0:00:20]}
40... Ra7 {[%clk 0:00:35.7]} 41. Kb3 {[%clk 0:00:19.8]} 41... Ra1 {[%clk
0:00:35.4]} 42. c5 {[%clk 0:00:19.8]} 42... bxc5 {[%clk 0:00:34.9]} 43. bxc5
{[%clk 0:00:20.3]} 43... f4 {[%clk 0:00:34.8]} 44. Rc3 {[%clk 0:00:18]} 44...
Ra7 {[%clk 0:00:31.4]} 45. c6 {[%clk 0:00:17.5]} 45... Rc7 {[%clk 0:00:31.6]}
46. Kb4 {[%clk 0:00:17.1]} 46... e3 {[%clk 0:00:29]} 47. fxe3 {[%clk 0:00:16.9]}
47... Rxc6 {[%clk 0:00:29.5]} 48. Rxc6+ {[%clk 0:00:16.1]} 48... Bxc6 {[%clk
0:00:30.4]} 49. exf4 {[%clk 0:00:14.7]} 49... Kf5 {[%clk 0:00:31]} 50. Kc5
{[%clk 0:00:15]} 50... Be4 {[%clk 0:00:30.8]} 51. Rf2 {[%clk 0:00:14.6]} 51...
h5 {[%clk 0:00:25.3]} 52. Kd4 {[%clk 0:00:14.9]} 52... Bc6 {[%clk 0:00:21.9]}
53. Ke3 {[%clk 0:00:15.4]} 53... h4 {[%clk 0:00:21.8]} 54. Ra2 {[%clk
0:00:15.8]} 54... h3 {[%clk 0:00:21.9]} 55. Ra5+ {[%clk 0:00:16.4]} 55... Kg4
{[%clk 0:00:20.5]} 56. Rg5+ {[%clk 0:00:16.5]} 56... Kh4 {[%clk 0:00:20.5]} 57.
Rxg6 {[%clk 0:00:16.8]} 57... Bg2 {[%clk 0:00:20.7]} 58. f5 {[%clk 0:00:17]}
58... Kh5 {[%clk 0:00:20.5]} 59. Rg3 {[%clk 0:00:16.8]} 59... Kh6 {[%clk
0:00:20.2]} 60. f6 {[%clk 0:00:16.3]} 60... Bd5 {[%clk 0:00:18.7]} 61. Kf4
{[%clk 0:00:16.8]} 61... Be6 {[%clk 0:00:18.1]} 62. Ke5 {[%clk 0:00:17.3]} 62...
Bc4 {[%clk 0:00:18.1]} 63. Kd6 {[%clk 0:00:17.9]} 63... Kh7 {[%clk 0:00:16.8]}
64. Ke7 {[%clk 0:00:18.4]} 1-0

[Event "*** Titled Tuesday Blitz"]
[Site "Chess.com"]
[Date "2020.04.28"]
[Round "4"]
[White "CarlosAlbornoz"]
[Black "benko_008"]
[Result "1/2-1/2"]
[WhiteElo "2744"]
[BlackElo "2517"]
[TimeControl "180+1"]
[EndTime "10:41:33 PDT"]
[Termination "Game drawn by repetition"]

1. e4 {[%clk 0:03:00.6]} 1... c5 {[%clk 0:02:54.9]} 2. Nf3 {[%clk 0:03:00.4]}
2... e6 {[%clk 0:02:54.7]} 3. d4 {[%clk 0:03:00.6]} 3... cxd4 {[%clk 0:02:54.9]}
4. Nxd4 {[%clk 0:03:01.5]} 4... a6 {[%clk 0:02:55.2]} 5. c4 {[%clk 0:03:00.4]}
5... d6 {[%clk 0:02:53.2]} 6. Nc3 {[%clk 0:03:00.4]} 6... b6 {[%clk 0:02:53.5]}
7. Be3 {[%clk 0:03:00.1]} 7... Bb7 {[%clk 0:02:53.5]} 8. Be2 {[%clk 0:03:00]}
8... Nf6 {[%clk 0:02:53.4]} 9. f3 {[%clk 0:03:00.2]} 9... Be7 {[%clk 0:02:51.9]}
10. O-O {[%clk 0:03:00.6]} 10... O-O {[%clk 0:02:51.9]} 11. a4 {[%clk
0:03:00.5]} 11... Nc6 {[%clk 0:02:49.2]} 12. Qd2 {[%clk 0:02:51.3]} 12... Rc8
{[%clk 0:02:33.7]} 13. Rfd1 {[%clk 0:02:49.2]} 13... Qc7 {[%clk 0:02:30.4]} 14.
Rac1 {[%clk 0:02:45.5]} 14... Qb8 {[%clk 0:02:27.5]} 15. Nc2 {[%clk 0:02:28.9]}
15... Ba8 {[%clk 0:02:24.7]} 16. b4 {[%clk 0:02:24]} 16... Rfd8 {[%clk
0:02:03.6]} 17. Rb1 {[%clk 0:02:22]} 17... Ne5 {[%clk 0:01:59.2]} 18. Qd4 {[%clk
0:02:18.4]} 18... Nfd7 {[%clk 0:01:52]} 19. Na3 {[%clk 0:02:12.4]} 19... Nc6
{[%clk 0:01:46.6]} 20. Qd2 {[%clk 0:02:10.5]} 20... Nde5 {[%clk 0:01:29.2]} 21.
f4 {[%clk 0:01:54.8]} 21... Ng6 {[%clk 0:01:20.1]} 22. a5 {[%clk 0:01:40.4]}
22... bxa5 {[%clk 0:00:59.6]} 23. bxa5 {[%clk 0:01:41.3]} 23... Bb7 {[%clk
0:00:59.8]} 24. Bb6 {[%clk 0:01:38]} 24... Re8 {[%clk 0:00:58.6]} 25. Qe3 {[%clk
0:01:31.1]} 25... Nf8 {[%clk 0:00:57.3]} 26. Rd2 {[%clk 0:01:29.5]} 26... Nd7
{[%clk 0:00:56.8]} 27. Rdb2 {[%clk 0:01:29.5]} 27... Qa8 {[%clk 0:00:53.2]} 28.
Nc2 {[%clk 0:01:26.2]} 28... Nxb6 {[%clk 0:00:45.9]} 29. axb6 {[%clk 0:01:13.3]}
29... Na5 {[%clk 0:00:40.2]} 30. Na3 {[%clk 0:01:03.4]} 30... Bf6 {[%clk
0:00:38.6]} 31. Rc1 {[%clk 0:00:48.5]} 31... Bc6 {[%clk 0:00:33.4]} 32. Nc2
{[%clk 0:00:44.6]} 32... Nb7 {[%clk 0:00:27.4]} 33. Nd4 {[%clk 0:00:44.5]} 33...
Bd7 {[%clk 0:00:27.5]} 34. e5 {[%clk 0:00:39.7]} 34... Be7 {[%clk 0:00:26.2]}
35. Bf3 {[%clk 0:00:39.5]} 35... dxe5 {[%clk 0:00:25.2]} 36. fxe5 {[%clk
0:00:40.4]} 36... Qb8 {[%clk 0:00:24.1]} 37. Nce2 {[%clk 0:00:31]} 37... Rc5
{[%clk 0:00:23.8]} 38. Qa3 {[%clk 0:00:20.2]} 38... Rxc4 {[%clk 0:00:19.6]} 39.
Qxa6 {[%clk 0:00:17]} 39... Rxc1+ {[%clk 0:00:19.3]} 40. Nxc1 {[%clk 0:00:17.9]}
40... Nc5 {[%clk 0:00:19.9]} 41. Qa7 {[%clk 0:00:16.3]} 41... Qxe5 {[%clk
0:00:19.4]} 42. Nce2 {[%clk 0:00:15.2]} 42... Qe3+ {[%clk 0:00:19.4]} 43. Kh1
{[%clk 0:00:14.7]} 43... Nd3 {[%clk 0:00:18.9]} 44. Qxd7 {[%clk 0:00:06.4]}
44... Nf2+ {[%clk 0:00:14]} 45. Kg1 {[%clk 0:00:06.5]} 45... Ne4+ {[%clk
0:00:10.7]} 46. Kh1 {[%clk 0:00:06.2]} 46... Nf2+ {[%clk 0:00:08.8]} 47. Kg1
{[%clk 0:00:06.3]} 47... Ra8 {[%clk 0:00:08.8]} 48. Bxa8 {[%clk 0:00:05.1]}
48... Nh3+ {[%clk 0:00:08.1]} 49. Kh1 {[%clk 0:00:05.3]} 49... Nf2+ {[%clk
0:00:06.2]} 50. Kg1 {[%clk 0:00:05.5]} 50... Nh3+ {[%clk 0:00:03.2]} 51. Kh1
{[%clk 0:00:06.4]} 51... Nf2+ {[%clk 0:00:03]} 52. Kg1 {[%clk 0:00:06.5]}
1/2-1/2

[Event "*** Titled Tuesday Blitz"]
[Site "Chess.com"]
[Date "2020.04.28"]
[Round "4"]
[White "PauloCesarCosta_sad"]
[Black "Manukyan_Artak"]
[Result "1/2-1/2"]
[WhiteElo "2128"]
[BlackElo "2398"]
[TimeControl "180+1"]
[EndTime "10:41:33 PDT"]
[Termination "Game drawn by agreement"]

1. Nf3 {[%clk 0:03:00.9]} 1... f5 {[%clk 0:02:59.2]} 2. d4 {[%clk 0:02:58.5]}
2... Nf6 {[%clk 0:02:58.8]} 3. g3 {[%clk 0:02:59.4]} 3... d5 {[%clk 0:02:53.5]}
4. Bg2 {[%clk 0:02:52.7]} 4... e6 {[%clk 0:02:53]} 5. O-O {[%clk 0:02:53.1]}
5... c5 {[%clk 0:02:51.9]} 6. Nc3 {[%clk 0:02:21.6]} 6... Nc6 {[%clk 0:02:50.3]}
7. Be3 {[%clk 0:02:14.5]} 7... Ng4 {[%clk 0:02:45.7]} 8. Bg5 {[%clk 0:02:07.1]}
8... Qb6 {[%clk 0:02:41.4]} 9. Na4 {[%clk 0:02:01.9]} 9... Qa5 {[%clk
0:02:36.3]} 10. b3 {[%clk 0:01:55.1]} 10... c4 {[%clk 0:02:31]} 11. h3 {[%clk
0:01:47.9]} 11... Nf6 {[%clk 0:02:27.2]} 12. Bd2 {[%clk 0:01:47.8]} 12... Qa6
{[%clk 0:02:14.4]} 13. e3 {[%clk 0:01:40.3]} 13... Ne4 {[%clk 0:02:12.8]} 14.
Nc3 {[%clk 0:01:30.3]} 14... Nxc3 {[%clk 0:01:53.4]} 15. Bxc3 {[%clk 0:01:29.9]}
15... Bd7 {[%clk 0:01:53.1]} 16. Qe2 {[%clk 0:01:21.5]} 16... b5 {[%clk
0:01:49]} 17. a4 {[%clk 0:01:15.6]} 17... b4 {[%clk 0:01:48.1]} 18. Bb2 {[%clk
0:01:08.2]} 18... Na5 {[%clk 0:01:41.6]} 19. Ne5 {[%clk 0:01:02.8]} 19... g6
{[%clk 0:01:30.1]} 20. Bf3 {[%clk 0:01:02.2]} 20... Bg7 {[%clk 0:01:25.1]} 21.
Nxd7 {[%clk 0:00:54.8]} 21... Kxd7 {[%clk 0:01:25.1]} 22. Rab1 {[%clk
0:00:55.7]} 22... Rhc8 {[%clk 0:01:21.5]} 23. Bc1 {[%clk 0:00:49.5]} 23... Rab8
{[%clk 0:01:20.1]} 24. Rd1 {[%clk 0:00:41.8]} 24... Rb6 {[%clk 0:01:15.7]} 25.
Bd2 {[%clk 0:00:35]} 25... c3 {[%clk 0:01:14.8]} 26. Qxa6 {[%clk 0:00:33.6]}
26... Rxa6 {[%clk 0:01:15.7]} 27. Be1 {[%clk 0:00:31.4]} 27... Nb7 {[%clk
0:01:08.1]} 28. Be2 {[%clk 0:00:31.6]} 28... Rb6 {[%clk 0:01:03.7]} 29. f3
{[%clk 0:00:31.4]} 29... Nd6 {[%clk 0:01:02.6]} 30. g4 {[%clk 0:00:29.9]} 30...
a5 {[%clk 0:01:01.3]} 31. Bg3 {[%clk 0:00:29.2]} 31... Bh6 {[%clk 0:00:57.5]}
32. Kf2 {[%clk 0:00:27.3]} 32... Rf8 {[%clk 0:00:56.5]} 33. Bxd6 {[%clk
0:00:27.2]} 33... Kxd6 {[%clk 0:00:56.3]} 34. f4 {[%clk 0:00:27.2]} 34... Bg7
{[%clk 0:00:46.4]} 35. g5 {[%clk 0:00:26.6]} 35... h6 {[%clk 0:00:46.1]} 36. h4
{[%clk 0:00:22.8]} 36... hxg5 {[%clk 0:00:45.9]} 37. hxg5 {[%clk 0:00:23.1]}
37... Rh8 {[%clk 0:00:44.4]} 38. Rh1 {[%clk 0:00:23]} 38... Rbb8 {[%clk
0:00:45.3]} 39. Rbg1 {[%clk 0:00:20.6]} 39... Ke7 {[%clk 0:00:42.3]} 40. Kg2
{[%clk 0:00:19.9]} 40... Kf7 {[%clk 0:00:34.9]} 41. Rxh8 {[%clk 0:00:18.9]}
41... Bxh8 {[%clk 0:00:28.6]} 42. Rh1 {[%clk 0:00:18.8]} 42... Bg7 {[%clk
0:00:28.6]} 43. Rh7 {[%clk 0:00:17.6]} 43... Kg8 {[%clk 0:00:27.7]} 44. Rh3
{[%clk 0:00:16]} 44... Rd8 {[%clk 0:00:26.8]} 45. Kf3 {[%clk 0:00:15.2]} 45...
Kf7 {[%clk 0:00:26.1]} 46. Bb5 {[%clk 0:00:14.7]} 46... Rh8 {[%clk 0:00:19.5]}
47. Rxh8 {[%clk 0:00:13.6]} 47... Bxh8 {[%clk 0:00:20.4]} 48. Bd3 {[%clk
0:00:12.9]} 48... Bg7 {[%clk 0:00:20.6]} 49. Kg3 {[%clk 0:00:12.6]} 49... Bf8
{[%clk 0:00:20.6]} 50. Bb5 {[%clk 0:00:11.7]} 50... Bd6 {[%clk 0:00:19.3]} 51.
Bd3 {[%clk 0:00:11.7]} 51... Bc7 {[%clk 0:00:19.4]} 52. Kf3 {[%clk 0:00:12]}
52... Bb6 {[%clk 0:00:19.5]} 53. Bb5 {[%clk 0:00:12.1]} 53... Ke7 {[%clk
0:00:19.7]} 54. Bd3 {[%clk 0:00:11.8]} 54... Kd6 {[%clk 0:00:19.6]} 55. Bb5
{[%clk 0:00:12]} 55... Ke7 {[%clk 0:00:19.3]} 56. Bd3 {[%clk 0:00:12.3]} 56...
Kd6 {[%clk 0:00:17.2]} 57. Be2 {[%clk 0:00:12.5]} 57... Kd7 {[%clk 0:00:16.3]}
58. Bd3 {[%clk 0:00:12.9]} 58... Kc7 {[%clk 0:00:16.3]} 59. Be2 {[%clk
0:00:12.8]} 59... Kd6 {[%clk 0:00:15.8]} 60. Bd3 {[%clk 0:00:12.9]} 60... Ke7
{[%clk 0:00:16]} 61. Be2 {[%clk 0:00:12.7]} 1/2-1/2